bitfinex/quotes_BTCUSD_20240820
["timestamp","ask_amount","ask_price","bid_price","bid_amount"]
[1724191522549,0.00061971,59499.0,59498.0,2.26447905]
[1724191522708,0.00061971,59499.0,59498.0,2.25047905]
[1724191522912,0.00061971,59499.0,59498.0,2.26447905]
[1724191523466,0.00061971,59499.0,59498.0,2.25047905]
[1724191524660,0.00061971,59499.0,59498.0,2.26447905]
[1724191524869,0.00061971,59499.0,59498.0,2.27847905]
[1724191525080,0.00061971,59499.0,59498.0,2.26447905]
[1724191525283,0.00061971,59499.0,59498.0,2.27847905]
[1724191525488,0.00061971,59499.0,59498.0,2.26447905]
[1724191525697,0.00061971,59499.0,59498.0,2.27847905]
[1724191526120,0.00061971,59499.0,59498.0,2.37847905]
[1724191526121,0.00041742,59499.0,59498.0,2.37847905]
[1724191526996,0.00041742,59499.0,59498.0,2.37843022]
[1724191527262,0.00041742,59499.0,59498.0,2.67193022]
[1724191527905,0.00041742,59499.0,59498.0,2.65793022]
[1724191528316,0.00041742,59499.0,59498.0,2.64393022]
[1724191528738,0.00041742,59499.0,59498.0,2.67193022]
[1724191529166,0.00041742,59499.0,59498.0,2.68593022]
[1724191529374,0.00041742,59499.0,59498.0,2.67193022]
[1724191529575,0.00041742,59499.0,59498.0,2.65793022]
[1724191529785,0.00041742,59499.0,59498.0,2.67193022]
[1724191529995,0.00041742,59499.0,59498.0,2.37843022]
[1724191530201,0.00041742,59499.0,59498.0,2.67193022]
[1724191530984,0.00041742,59499.0,59498.0,2.36443022]
[1724191531648,0.00041742,59499.0,59498.0,2.36443842]
[1724191531855,0.00041742,59499.0,59498.0,2.35043842]
[1724191532073,0.00041742,59499.0,59498.0,2.37843842]
[1724191534357,0.00041742,59499.0,59498.0,2.19145964]
[1724191535132,0.50051154,59518.0,59498.0,2.19145964]
[1724191535133,0.05894221,59551.0,59531.0,0.167978]
[1724191535361,0.335739,59570.0,59528.0,0.001]
[1724191535362,0.05892165,59602.0,59550.0,0.68620703]
[1724191535560,0.008153,59613.0,59532.0,0.37565623]
[1724191535561,0.008153,59613.0,59593.0,0.001]
[1724191535762,0.0002025,59635.0,59616.0,0.16774]
[1724191535763,0.05887628,59622.0,59616.0,0.16774]
[1724191535973,0.0002025,59635.0,59616.0,0.50322]
[1724191536186,0.0002025,59635.0,59616.0,0.9373]
[1724191536408,0.0002025,59635.0,59616.0,1.52135878]
[1724191536621,0.0002025,59635.0,59616.0,1.21199878]
[1724191536826,0.3653,59634.0,59616.0,0.50182]
[1724191537037,0.0648,59621.0,59616.0,0.26634]
[1724191537239,0.0648,59621.0,59601.0,0.077]
[1724191537443,0.0648,59621.0,59601.0,0.001]
[1724191537690,0.0648,59621.0,59598.0,0.001]
[1724191537902,0.17774,59617.0,59603.0,0.167776]
[1724191538108,0.17774,59617.0,59605.0,0.16777]
[1724191538109,0.01,59617.0,59605.0,0.16777]
[1724191538301,0.01,59617.0,59605.0,0.016777]
[1724191538530,0.01,59617.0,59616.0,0.014]
[1724191538727,0.01,59617.0,59597.0,0.09779915]
[1724191538976,0.01,59617.0,59597.0,0.07479915]
[1724191539159,0.01,59617.0,59601.0,0.16778]
[1724191539367,0.01,59617.0,59598.0,0.028]
[1724191539368,0.01,59617.0,59599.0,0.335573]
[1724191539569,0.01,59617.0,59605.0,0.014]
[1724191539689,0.167746,59614.0,59605.0,0.014]
[1724191539890,0.167748,59613.0,59600.0,0.167784]
[1724191540102,0.01,59617.0,59610.0,0.167755]
[1724191540315,0.01,59617.0,59599.0,0.09306857]
[1724191540525,0.00419384,59616.0,59595.0,0.49229154]
[1724191540758,0.00419384,59616.0,59585.0,0.167827]
[1724191540759,0.167794,59597.0,59585.0,0.167827]
[1724191540963,0.1443,59595.0,59578.0,0.49229154]
[1724191541183,0.1443,59595.0,59576.0,0.01743672]
[1724191541184,0.335629,59590.0,59579.0,0.49229154]
[1724191541407,0.0335629,59589.0,59576.0,0.01743672]
[1724191541613,0.1,59594.0,59573.0,0.338721]
[1724191541614,0.1,59594.0,59577.0,0.00335623]
[1724191541810,0.1,59594.0,59579.0,0.335686]
[1724191542023,0.1,59594.0,59575.0,0.33671]
[1724191542024,0.167806,59593.0,59583.0,0.16783]
[1724191542216,0.2425758,59593.0,59583.0,0.16783]
[1724191542424,0.335619,59592.0,59578.0,0.008]
[1724191542627,0.335619,59592.0,59573.0,0.33572]
[1724191542628,0.167817,59589.0,59573.0,0.33572]
[1724191542863,0.0747698,59593.0,59573.0,0.33572]
[1724191542864,0.167819,59588.0,59579.0,0.190842]
[1724191544155,0.167822,59587.0,59579.0,0.181842]
[1724191544385,0.167822,59587.0,59573.0,0.33572]
[1724191544386,0.335621,59591.0,59573.0,0.33572]
[1724191544588,0.167828,59585.0,59577.0,0.167847]
[1724191544796,0.167828,59585.0,59578.0,0.012]
[1724191545001,0.16783,59584.0,59573.0,0.014]
[1724191545208,0.01477405,59584.0,59573.0,0.014]
[1724191545419,0.01477405,59584.0,59579.0,0.014]
[1724191545623,0.335621,59591.0,59566.0,0.336758]
[1724191545624,0.335572,59600.0,59580.0,0.00335648]
[1724191545828,0.01181924,59583.0,59582.0,0.840176]
[1724191546038,0.304075,59604.0,59582.0,0.08465319]
[1724191546039,0.1363,59604.0,59582.0,0.08465319]
[1724191546242,0.167806,59593.0,59583.0,0.335666]
[1724191546415,0.167806,59593.0,59585.0,0.167826]
[1724191546793,0.01477405,59592.0,59586.0,0.167824]
[1724191547384,0.01477405,59592.0,59591.0,0.16781]
[1724191547578,0.01477405,59592.0,59589.0,0.167815]
[1724191547778,0.167797,59596.0,59589.0,0.167815]
[1724191548233,0.01477405,59595.0,59589.0,0.167815]
[1724191548408,0.01477405,59595.0,59590.0,0.0229164]
[1724191548626,0.01477405,59595.0,59591.0,0.012]
[1724191549186,0.01477405,59595.0,59591.0,0.347617]
[1724191549392,0.167789,59599.0,59591.0,0.179809]
[1724191549591,0.01477405,59598.0,59592.0,0.167806]
[1724191550181,0.01477405,59598.0,59591.0,0.012]
[1724191550182,0.18256505,59598.0,59591.0,0.012]
[1724191550334,0.23437886,59598.0,59591.0,0.179809]
[1724191550531,0.335591,59597.0,59591.0,0.012]
[1724191550729,0.335597,59596.0,59591.0,0.02]
[1724191550932,0.335597,59596.0,59591.0,0.008]
[1724191550933,0.167802,59594.0,59591.0,0.008]
[1724191551341,0.167806,59593.0,59587.0,0.201541]
[1724191551673,0.1720022,59592.0,59591.0,0.012]
[1724191551876,0.503422,59592.0,59591.0,0.02]
[1724191552080,0.167814,59590.0,59583.0,0.167831]
[1724191552285,0.2181569,59590.0,59582.0,0.03372]
[1724191552490,0.167817,59589.0,59587.0,0.014]
[1724191552699,0.18259105,59589.0,59583.0,0.167831]
[1724191552909,0.167819,59588.0,59582.0,0.03372]
[1724191553116,0.01477405,59589.0,59585.0,0.167826]
[1724191553315,0.167814,59590.0,59583.0,0.167832]
[1724191553547,0.01477405,59588.0,59583.0,0.167832]
[1724191553732,0.167817,59589.0,59583.0,0.167832]
[1724191553939,0.01477405,59587.0,59583.0,0.167832]
[1724191554087,0.167817,59589.0,59583.0,0.167832]
[1724191554284,0.01477405,59586.0,59584.0,0.16783]
[1724191554509,0.167817,59589.0,59584.0,0.16783]
[1724191554715,0.167817,59589.0,59587.0,0.014]
[1724191554917,0.167819,59588.0,59583.0,0.014]
[1724191555353,0.167819,59588.0,59583.0,0.181832]
[1724191555551,0.167819,59588.0,59583.0,0.167832]
[1724191555734,0.2517247,59588.0,59584.0,0.014]
[1724191555887,0.2517247,59588.0,59587.0,0.014]
[1724191556101,0.2517247,59588.0,59584.0,0.014]
[1724191556102,0.167819,59588.0,59584.0,0.014]
[1724191556297,0.335623,59591.0,59584.0,0.181829]
[1724191556298,0.335621,59591.0,59584.0,0.181829]
[1724191556494,0.167818,59589.0,59584.0,0.181829]
[1724191556703,0.167819,59588.0,59582.0,0.201554]
[1724191556895,0.167819,59588.0,59583.0,0.167833]
[1724191557192,0.167819,59588.0,59583.0,0.181833]
[1724191557631,0.167819,59588.0,59583.0,0.167833]
[1724191557833,0.167819,59588.0,59583.0,0.1827372]
[1724191558210,0.00419574,59587.0,59583.0,0.0149042]
[1724191558409,0.247228,59585.0,59583.0,0.0149042]
[1724191558929,0.247228,59585.0,59583.0,0.0289042]
[1724191559139,0.247228,59585.0,59583.0,0.0149042]
[1724191559490,0.50349,59584.0,59583.0,0.0289042]
[1724191559757,0.90505,59584.0,59583.0,0.0289042]
[1724191559892,0.90505,59584.0,59583.0,0.0149042]
[1724191560094,0.91765083,59584.0,59583.0,0.0149042]
[1724191560340,1.05092161,59584.0,59583.0,0.0289042]
[1724191560741,1.05092161,59584.0,59583.0,0.0009042]
[1724191560943,0.91765083,59584.0,59583.0,0.0149042]
[1724191561167,0.91765083,59584.0,59583.0,0.0289042]
[1724191561351,1.25331083,59584.0,59583.0,0.0289042]
[1724191561560,1.25331083,59584.0,59583.0,0.0009042]
[1724191561985,1.38658191,59584.0,59583.0,0.0249042]
[1724191562163,1.25331083,59584.0,59583.0,0.0249042]
[1724191562562,1.25331083,59584.0,59583.0,0.0149042]
[1724191563172,1.35331083,59584.0,59583.0,0.0149042]
[1724191563575,1.35331083,59584.0,59583.0,0.0009042]
[1724191564121,0.07950083,59584.0,59583.0,0.0119042]
[1724191564418,0.167819,59588.0,59583.0,0.0119042]
[1724191564624,0.0798,59593.0,59583.0,0.0119042]
[1724191564625,0.01661446,59584.0,59583.0,0.0009042]
[1724191564835,0.00419556,59592.0,59583.0,0.0149042]
[1724191564836,0.167826,59586.0,59583.0,0.0149042]
[1724191565044,0.01552279,59584.0,59583.0,0.0279042]
[1724191565216,0.001,59584.0,59583.0,0.0279042]
[1724191565429,0.50349,59584.0,59583.0,0.0009042]
[1724191565637,0.85367279,59584.0,59583.0,0.0009042]
[1724191566876,0.85367279,59584.0,59583.0,0.0149042]
[1724191567400,0.85367279,59584.0,59583.0,0.0279042]
[1724191567894,0.51801279,59584.0,59583.0,0.0279042]
[1724191568316,0.51801279,59584.0,59583.0,0.0149042]
[1724191568737,0.51801279,59584.0,59583.0,0.0289042]
[1724191569017,0.85367279,59584.0,59583.0,0.0289042]
[1724191569389,0.51801279,59584.0,59583.0,0.0289042]
[1724191569588,0.51883479,59584.0,59583.0,0.0289042]
[1724191570205,0.01534479,59584.0,59583.0,0.1967372]
[1724191570412,0.28958263,59592.0,59583.0,0.1967372]
[1724191570616,0.28958263,59592.0,59583.0,0.0289042]
[1724191570617,0.1,59591.0,59583.0,0.0289042]
[1724191570823,0.167826,59586.0,59583.0,0.0289042]
[1724191571229,0.01213845,59585.0,59583.0,0.0149042]
[1724191571434,0.33985579,59584.0,59583.0,0.0149042]
[1724191571655,0.50768579,59584.0,59583.0,0.0289042]
[1724191571860,0.85548424,59584.0,59583.0,0.0289042]
[1724191572235,0.85548424,59584.0,59583.0,0.0149042]
[1724191572438,0.85128845,59584.0,59583.0,0.0289042]
[1724191572854,0.85128845,59584.0,59583.0,0.0149042]
[1724191573216,0.85128845,59584.0,59583.0,0.0289042]
[1724191573471,0.85128845,59584.0,59583.0,0.0149042]
[1724191573816,0.85128845,59584.0,59583.0,0.0289042]
[1724191574240,0.85128845,59584.0,59583.0,0.0149042]
[1724191574757,0.85128845,59584.0,59583.0,0.0289042]
[1724191578545,0.53319829,59584.0,59583.0,0.0289042]
[1724191580059,0.02970829,59584.0,59583.0,0.0289042]
[1724191580207,0.01015822,59584.0,59583.0,0.24436812]
[1724191580420,1e-08,59584.0,59583.0,0.71523549]
[1724191580622,1e-08,59584.0,59583.0,1.05090149]
[1724191580885,1e-08,59584.0,59583.0,1.05144139]
[1724191581093,1e-08,59584.0,59583.0,0.90505233]
[1724191582045,0.01021217,59584.0,59583.0,0.90505233]
[1724191582249,1e-08,59584.0,59583.0,0.90505233]
[1724191582478,1e-08,59584.0,59583.0,1.63858433]
[1724191582678,0.000822,59592.0,59591.0,0.538151]
[1724191582947,0.000822,59592.0,59591.0,1.73625723]
[1724191583073,0.137,59615.0,59610.0,0.167756]
[1724191583276,0.1,59613.0,59612.0,0.07409743]
[1724191583509,0.1,59613.0,59612.0,0.90945767]
[1724191583707,0.1,59613.0,59612.0,1.35813467]
[1724191583865,0.1,59613.0,59612.0,1.48163039]
[1724191584067,0.0105668,59628.0,59616.0,0.8387]
[1724191584314,0.0105668,59628.0,59616.0,0.9464897]
[1724191584507,0.0105668,59628.0,59616.0,1.39564001]
[1724191584912,0.0105668,59628.0,59624.0,0.838587]
[1724191585216,0.0105668,59628.0,59624.0,1.64232341]
[1724191585426,0.0105668,59628.0,59624.0,0.40608623]
[1724191585652,0.16772,59623.0,59622.0,0.04932886]
[1724191585857,0.16772,59623.0,59619.0,0.08304886]
[1724191585858,0.167728,59620.0,59619.0,0.08304886]
[1724191586059,0.0609,59623.0,59615.0,0.04932886]
[1724191586060,0.00419348,59622.0,59615.0,0.04932886]
[1724191586265,0.00419348,59622.0,59612.0,0.028]
[1724191586266,0.167743,59615.0,59612.0,0.014]
[1724191586530,0.167743,59615.0,59608.0,0.242961]
[1724191586531,0.167743,59615.0,59610.0,0.04932886]
[1724191586763,0.0041936,59619.0,59611.0,0.03372]
[1724191586975,0.167751,59612.0,59611.0,0.03372]
[1724191587193,0.50322,59616.0,59615.0,0.014]
[1724191587391,0.50332,59604.0,59603.0,0.04932886]
[1724191587606,0.50332,59604.0,59594.0,0.167801]
[1724191587607,1.771636,59613.0,59612.0,0.014]
[1724191587843,2.37731478,59613.0,59612.0,0.014]
[1724191588102,2.37731478,59613.0,59590.0,0.03372]
[1724191588103,0.167806,59593.0,59590.0,0.03372]
[1724191588305,0.335583,59598.0,59592.0,0.03372]
[1724191588306,0.167803,59594.0,59592.0,0.03372]
[1724191588515,0.335583,59598.0,59592.0,0.03372]
[1724191588918,0.167801,59595.0,59592.0,0.03372]
[1724191589120,0.167801,59595.0,59590.0,0.03372]
[1724191589806,0.435539,59606.0,59590.0,0.03372]
[1724191590011,0.35434471,59605.0,59590.0,0.03372]
[1724191590212,0.35434471,59605.0,59583.0,0.3365652]
[1724191590213,0.167802,59594.0,59593.0,0.03372]
[1724191591341,0.167807,59593.0,59591.0,0.03372]
[1724191591912,0.00419532,59595.0,59591.0,0.03372]
[1724191591913,0.167807,59592.0,59591.0,0.03372]
[1724191592281,0.167807,59592.0,59588.0,0.03372]
[1724191592534,0.167807,59592.0,59587.0,0.167821]
[1724191592535,0.167803,59594.0,59593.0,0.04772]
[1724191592759,0.167803,59594.0,59593.0,0.03372]
[1724191593495,0.167803,59594.0,59592.0,0.03372]
[1724191593714,0.167803,59594.0,59591.0,0.014]
[1724191593715,0.167803,59594.0,59593.0,0.04772]
[1724191594233,0.167788,59599.0,59593.0,0.215522]
[1724191594470,0.167791,59598.0,59593.0,0.215522]
[1724191594700,0.167791,59598.0,59593.0,0.229522]
[1724191595384,0.335532,59607.0,59596.0,0.03372]
[1724191595636,0.0609,59613.0,59598.0,0.03372]
[1724191595864,0.0609,59613.0,59606.0,0.167767]
[1724191595865,0.167756,59611.0,59606.0,0.167767]
[1724191596094,0.167756,59611.0,59605.0,0.16777]
[1724191596095,0.167755,59611.0,59605.0,0.16777]
[1724191596324,0.167757,59610.0,59605.0,0.16777]
[1724191596584,0.335466,59619.0,59607.0,0.03372]
[1724191596830,0.1413,59623.0,59610.0,0.167754]
[1724191597095,0.167744,59615.0,59608.0,0.03372]
[1724191597333,0.167744,59615.0,59610.0,0.167755]
[1724191597608,0.3471061,59625.0,59615.0,0.167742]
[1724191597609,0.0116741,59625.0,59615.0,0.167742]
[1724191597850,0.0116741,59625.0,59612.0,0.076]
[1724191597851,0.0116741,59625.0,59619.0,0.03372]
[1724191598092,0.167718,59624.0,59619.0,0.03372]
[1724191598422,0.0116741,59625.0,59624.0,0.167717]
[1724191598578,0.0116741,59625.0,59624.0,0.536872]
[1724191598802,0.0116741,59625.0,59624.0,0.872307]
[1724191599071,0.0002,59639.0,59638.0,0.83839]
[1724191599324,0.0002,59639.0,59638.0,0.98029]
[1724191599819,0.0002,59639.0,59629.0,0.002]
[1724191599820,0.0002,59639.0,59629.0,0.401305]
[1724191600069,0.0002,59639.0,59627.0,0.335416]
[1724191600331,0.0002,59639.0,59638.0,0.808432]
[1724191600567,0.0002,59639.0,59638.0,1.02801]
[1724191600796,0.0002,59639.0,59638.0,1.363366]
[1724191601026,0.0002,59639.0,59638.0,1.377366]
[1724191601274,0.0002,59639.0,59638.0,1.363366]
[1724191601530,0.0002,59639.0,59638.0,1.4857026]
[1724191601774,0.0002,59639.0,59638.0,0.612754]
[1724191602247,0.0002,59639.0,59638.0,0.536754]
[1724191602722,0.0002,59639.0,59638.0,0.550754]
[1724191602969,0.0002,59639.0,59638.0,0.201398]
[1724191603246,0.0002,59639.0,59638.0,0.04772]
[1724191603540,0.0002,59639.0,59638.0,0.014]
[1724191603541,0.167875,59639.0,59638.0,0.014]
[1724191603771,0.56113238,59639.0,59638.0,0.028]
[1724191603994,0.56113238,59639.0,59638.0,0.167678]
[1724191603995,0.00799132,59639.0,59638.0,0.167678]
[1724191604225,0.00799132,59639.0,59638.0,0.550754]
[1724191604449,0.0002,59639.0,59638.0,0.564754]
[1724191604694,0.0002,59639.0,59638.0,0.229398]
[1724191604923,0.503226,59639.0,59638.0,0.028]
[1724191605147,0.56243506,59639.0,59638.0,0.028]
[1724191605373,0.84633392,59639.0,59638.0,0.028]
[1724191605617,0.51098292,59639.0,59638.0,0.028]
[1724191605873,0.00877892,59639.0,59638.0,0.028]
[1724191606136,0.00877892,59639.0,59638.0,0.014]
[1724191606591,0.00877892,59639.0,59638.0,0.028]
[1724191606817,0.00877892,59639.0,59638.0,0.014]
[1724191607079,0.00877892,59639.0,59636.0,0.167683]
[1724191607318,0.00877892,59639.0,59638.0,0.014]
[1724191607547,0.00877892,59639.0,59638.0,0.028]
[1724191607789,0.00977892,59639.0,59638.0,0.028]
[1724191608013,0.00977892,59639.0,59638.0,0.014]
[1724191608279,0.00977892,59639.0,59638.0,0.694054]
[1724191608508,0.00977892,59639.0,59638.0,1.364766]
[1724191608760,0.002022,59639.0,59638.0,1.364766]
[1724191609691,0.0059646,59643.0,59638.0,1.183088]
[1724191609963,0.0059646,59643.0,59642.0,0.838335]
[1724191610196,0.0059646,59643.0,59642.0,1.207389]
[1724191610654,0.02577134,59652.0,59649.0,1.590723]
[1724191610894,0.00822,59653.0,59649.0,1.590723]
[1724191610895,0.00822,59653.0,59652.0,0.537635]
[1724191611162,0.0764,59679.0,59665.0,0.537526]
[1724191611163,0.0002,59679.0,59665.0,0.537526]
[1724191611452,0.0002,59679.0,59665.0,1.286834]
[1724191611729,0.0002,59679.0,59665.0,1.35213001]
[1724191612195,0.0762,59678.0,59665.0,0.03372]
[1724191612411,0.167592,59669.0,59659.0,0.00335211]
[1724191612647,0.343391,59671.0,59659.0,0.06738521]
[1724191612900,0.343391,59671.0,59656.0,0.167625]
[1724191612901,0.00779131,59665.0,59656.0,0.167625]
[1724191613172,0.167608,59663.0,59654.0,0.167631]
[1724191613426,0.167645,59650.0,59642.0,0.0964]
[1724191613681,0.167645,59650.0,59646.0,0.49229154]
[1724191613933,0.1,59661.0,59637.0,0.335361]
[1724191614191,0.167645,59650.0,59642.0,0.167665]
[1724191614472,0.00017187,59660.0,59645.0,0.52601154]
[1724191614732,0.00017187,59660.0,59649.0,0.335292]
[1724191614733,0.167623,59658.0,59649.0,0.335292]
[1724191614977,0.1,59661.0,59652.0,0.03372]
[1724191615196,0.167621,59659.0,59652.0,0.03372]
[1724191615451,0.335238,59659.0,59650.0,0.0369012]
[1724191615668,0.335238,59659.0,59647.0,0.3353]
[1724191615669,0.1,59661.0,59647.0,0.03372]
[1724191615928,0.167637,59653.0,59647.0,0.03372]
[1724191616167,0.167639,59652.0,59647.0,0.167652]
[1724191616353,0.33525,59657.0,59648.0,0.167649]
[1724191616354,0.167635,59654.0,59648.0,0.167649]
[1724191616497,0.167636,59653.0,59648.0,0.167649]
[1724191616701,0.1,59662.0,59650.0,0.014]
[1724191616906,0.1,59662.0,59654.0,0.167631]
[1724191616907,0.167619,59659.0,59654.0,0.167631]
[1724191617111,0.16762,59659.0,59654.0,0.167631]
[1724191617312,0.16762,59659.0,59652.0,0.03372]
[1724191617572,0.1,59662.0,59652.0,0.03372]
[1724191617573,0.168444,59658.0,59653.0,0.24119993]
[1724191617773,0.000821,59658.0,59654.0,0.167633]
[1724191617980,0.000821,59658.0,59654.0,0.03372]
[1724191618311,0.000821,59658.0,59654.0,0.201351]
[1724191618512,0.000821,59658.0,59652.0,0.03372]
[1724191618717,0.167636,59653.0,59652.0,0.04772]
[1724191619193,0.91628,59653.0,59652.0,0.014]
[1724191619546,1.4767058,59653.0,59652.0,0.014]
[1724191619946,1.4767058,59653.0,59635.0,0.0009031]
[1724191619947,0.979417,59636.0,59635.0,0.0009031]
[1724191620150,1.314784,59636.0,59635.0,0.0009031]
[1724191620378,0.979417,59636.0,59635.0,0.0009031]
[1724191620783,1.314784,59636.0,59635.0,0.0009031]
[1724191621634,1.414784,59636.0,59635.0,0.0119031]
[1724191622031,1.414784,59636.0,59635.0,0.0009031]
[1724191622585,1.414784,59636.0,59635.0,0.0109031]
[1724191622792,1.5565624,59636.0,59635.0,0.0109031]
[1724191622997,2.0929294,59636.0,59635.0,0.0109031]
[1724191623208,2.0929294,59636.0,59635.0,0.0009031]
[1724191623404,2.0919294,59636.0,59635.0,0.0009031]
[1724191623606,2.0939294,59636.0,59635.0,0.0209031]
[1724191624064,2.0969294,59636.0,59635.0,0.0209031]
[1724191624268,2.0949294,59636.0,59635.0,0.0009031]
[1724191624675,2.0989294,59636.0,59635.0,0.0009031]
[1724191624882,2.0949294,59636.0,59635.0,0.0009031]
[1724191625285,2.0979294,59636.0,59635.0,0.0009031]
[1724191625690,2.0999294,59636.0,59635.0,0.0009031]
[1724191626036,2.0979294,59636.0,59635.0,0.0009031]
[1724191626236,2.0989294,59636.0,59635.0,0.0009031]
[1724191626457,2.0959294,59636.0,59635.0,0.0009031]
[1724191626658,1.955151,59636.0,59635.0,0.0009031]
[1724191626863,1.957151,59636.0,59635.0,0.0009031]
[1724191627058,1.956151,59636.0,59635.0,0.0009031]
[1724191627493,1.958151,59636.0,59635.0,0.0009031]
[1724191627958,1.417784,59636.0,59635.0,0.0009031]
[1724191628164,0.309683,59636.0,59635.0,0.0009031]
[1724191628344,0.98360973,59636.0,59635.0,0.0009031]
[1724191628549,1.32297673,59636.0,59635.0,0.0009031]
[1724191628750,1.32397673,59636.0,59635.0,0.0009031]
[1724191629222,1.32297673,59636.0,59635.0,0.0009031]
[1724191629427,1.418784,59636.0,59635.0,0.0069031]
[1724191629841,1.414784,59636.0,59635.0,0.0069031]
[1724191630048,0.60305,59636.0,59635.0,0.0069031]
[1724191630252,0.840417,59636.0,59635.0,0.0069031]
[1724191630455,0.838417,59636.0,59635.0,0.0069031]
[1724191630656,0.838417,59636.0,59635.0,0.0009031]
[1724191630808,0.50405,59636.0,59635.0,0.0069031]
[1724191631015,0.001,59636.0,59635.0,0.0069031]
[1724191631218,0.000821,59658.0,59640.0,0.335343]
[1724191631417,0.000821,59658.0,59641.0,0.0410943]
[1724191631643,0.000821,59658.0,59637.0,0.0756]
[1724191631644,0.335262,59655.0,59637.0,0.0756]
[1724191631845,0.335262,59655.0,59642.0,0.03372]
[1724191631846,0.335284,59651.0,59642.0,0.03372]
[1724191632017,0.335298,59649.0,59642.0,0.03372]
[1724191632399,0.336066,59658.0,59642.0,0.03372]
[1724191632581,0.336066,59658.0,59642.0,0.201386]
[1724191632582,0.0290231,59652.0,59642.0,0.201386]
[1724191632821,0.167667,59642.0,59641.0,0.014]
[1724191633030,0.00419155,59651.0,59642.0,0.03372]
[1724191633031,0.167642,59651.0,59642.0,0.03372]
[1724191633219,0.000821,59652.0,59642.0,0.03372]
[1724191633220,0.167649,59649.0,59642.0,0.03372]
[1724191633437,0.16765,59648.0,59642.0,0.201384]
[1724191633671,0.16765,59648.0,59642.0,0.215384]
[1724191633911,0.001821,59652.0,59642.0,0.215384]
[1724191633912,0.001821,59652.0,59651.0,0.502924]
[1724191634099,0.001821,59652.0,59651.0,0.871927]
[1724191634100,0.000821,59652.0,59651.0,0.871927]
[1724191634299,0.000821,59652.0,59651.0,1.2945027]
[1724191634603,0.000821,59652.0,59651.0,1.0348197]
[1724191634729,0.000821,59652.0,59651.0,0.946527]
[1724191635132,0.000821,59658.0,59657.0,0.335249]
[1724191635329,0.000821,59658.0,59657.0,0.977242]
[1724191635534,0.000821,59658.0,59657.0,1.412491]
[1724191636142,0.0116741,59685.0,59665.0,1.207934]
[1724191636342,0.0116741,59685.0,59665.0,1.4303274]
[1724191636608,0.0116741,59685.0,59665.0,1.7655314]
[1724191637013,0.0116741,59685.0,59670.0,1.301836]
[1724191637213,0.0116741,59685.0,59670.0,1.995188]
[1724191637432,0.0116741,59685.0,59670.0,1.80277523]
[1724191637566,0.0116741,59685.0,59670.0,1.96675401]
[1724191637780,0.0116741,59685.0,59670.0,1.422836]
[1724191638723,0.0002,59679.0,59678.0,1.608509]
[1724191638928,0.0002,59679.0,59678.0,1.53905678]
[1724191639128,0.0002,59679.0,59678.0,1.63905678]
[1724191639330,0.0002,59679.0,59678.0,1.63805678]
[1724191639509,0.0002,59679.0,59678.0,1.375078]
[1724191639710,0.0002,59679.0,59678.0,1.015947]
[1724191639919,0.0002,59679.0,59678.0,0.03372]
[1724191640123,0.0002,59679.0,59678.0,0.201285]
[1724191640371,0.0002,59679.0,59678.0,0.8916755]
[1724191640581,0.0012,59679.0,59678.0,0.5675445]
[1724191640780,0.0002,59679.0,59678.0,0.201285]
[1724191641095,0.0002,59679.0,59678.0,0.03372]
[1724191641320,0.01753927,59711.0,59693.0,0.53429]
[1724191641526,0.334977,59706.0,59693.0,0.201243]
[1724191641729,0.410799,59702.0,59681.0,0.0751]
[1724191641931,0.410799,59702.0,59682.0,0.01502]
[1724191642224,0.167504,59700.0,59683.0,0.00334708]
[1724191642432,0.0758,59702.0,59693.0,0.200243]
[1724191642433,0.2433,59702.0,59693.0,0.200243]
[1724191642624,0.167502,59701.0,59693.0,0.200243]
[1724191642973,0.00102324,59694.0,59693.0,0.200243]
[1724191643383,0.00102324,59694.0,59693.0,0.03372]
[1724191643583,0.22994424,59694.0,59693.0,0.03372]
[1724191643785,0.22994424,59694.0,59675.0,0.0773]
[1724191643786,0.15284045,59694.0,59678.0,0.014]
[1724191644032,0.16755,59684.0,59678.0,0.014]
[1724191644234,0.167549,59684.0,59682.0,0.014]
[1724191644436,0.167551,59683.0,59676.0,0.167571]
[1724191644639,0.167555,59682.0,59676.0,0.167571]
[1724191644844,0.1825,59693.0,59670.0,0.49229154]
[1724191645050,0.1825,59693.0,59683.0,0.014]
[1724191645051,0.335058,59692.0,59683.0,0.014]
[1724191645270,0.335058,59692.0,59684.0,0.167547]
[1724191645271,0.167533,59690.0,59684.0,0.167547]
[1724191645597,0.167533,59690.0,59682.0,0.335104]
[1724191645797,0.167533,59690.0,59684.0,0.167548]
[1724191645977,0.435058,59692.0,59680.0,0.03372]
[1724191646185,0.167543,59686.0,59680.0,0.201278]
[1724191646542,0.167543,59686.0,59676.0,0.014]
[1724191646746,0.435053,59692.0,59680.0,0.167558]
[1724191646747,0.167542,59687.0,59680.0,0.167558]
[1724191647614,0.335087,59686.0,59680.0,0.014]
[1724191647798,0.167549,59684.0,59679.0,0.03372]
[1724191648001,0.167544,59686.0,59676.0,0.33514]
[1724191648209,0.167544,59686.0,59684.0,0.013]
[1724191648549,0.167546,59685.0,59678.0,0.167564]
[1724191648759,0.167549,59684.0,59678.0,0.167564]
[1724191649020,0.167549,59684.0,59680.0,0.028]
[1724191649431,0.167549,59684.0,59680.0,0.014]
[1724191649915,0.167552,59683.0,59677.0,0.167568]
[1724191650327,0.335073,59689.0,59678.0,0.181564]
[1724191650532,0.167553,59683.0,59678.0,0.014]
[1724191650938,0.167553,59683.0,59680.0,0.014]
[1724191651143,0.335094,59685.0,59680.0,0.014]
[1724191651355,0.167553,59683.0,59678.0,0.014]
[1724191651826,0.00102324,59694.0,59679.0,0.1591567]
[1724191652036,0.167532,59690.0,59684.0,0.167548]
[1724191652238,0.335055,59692.0,59683.0,0.16755]
[1724191652655,0.167536,59689.0,59683.0,0.16755]
[1724191652857,0.167531,59691.0,59683.0,0.16755]